[Event "SUI-ch Bundesturnier TP-1 2022"]
[Site "Payerne"]
[Date "2022.05.28"]
[Round "5.7"]
[White "Asllani, Dorian"]
[Black "Stijve, Theo"]
[Result "1/2-1/2"]
[ECO "A57"]
[WhiteElo "2116"]
[BlackElo "2341"]
[Annotator "TA"]
[PlyCount "78"]
[EventDate "2022.05.26"]
[EventType "swiss"]
[EventCountry "SUI"]
[SourceTitle "playchess.com"]
[Source "ChessBase"]
[SourceQuality "1"]
[TimeControl "5400+30"]

{[%evp 17,78,27,36,27,43,35,32,30,27,29,27,6,60,57,75,72,72,70,62,0,0,0,0,0,0,0,0,0,0,-3,0,0,0,0,0,0,0,0,0,0,0,0,0,0,0,0,0,0,0,0,0,0,0,0,0,0,0,0,0,0,0,0,0]} 1. d4 {[%emt 0:00:03]} Nf6 {[%emt 0:00:06]} 2. c4 {[%emt 0:00:12]} c5 {[%emt 0:00:27]} 3. d5 {[%emt 0:00:05]} b5 {[%emt 0:00:09]} 4. cxb5 {[%emt 0:00:06]} a6 {[%emt 0:00:04]} 5. e3 {[%emt 0:00:08]} e6 {[%emt 0:00:07]} 6. Nc3 {[%emt 0:00:29]} exd5 {[%emt 0:00:25]} 7. Nxd5 {[%emt 0:00:14]} Bb7 {[%emt 0:00:07]} 8. Nxf6+ {[%emt 0:00:10]} Qxf6 {[%emt 0:00:08]} 9. Nf3 {[%emt 0:02:55]} Be7 {[%emt 0:01:01]} 10. Be2 {[%emt 0:02:27] A57: Benko/Volga Gambit.} axb5 {[%emt 0:03:21]} 11. Bxb5 {[%emt 0:00:29]} O-O {[%emt 0:00:08]} 12. O-O {[%emt 0:01:10] White is slightly better.} Rd8 {[%emt 0:00:21]} 13. e4 {[%emt 0:21:04]} Bxe4 {[%emt 0:12:28]} 14. Bg5 {[%emt 0:01:01] [#]} Qe6 $146 {[%emt 0:01:02]} ({Better is} 14... Qxb2 $11 15. Bxe7 Re8) ({Predecessor:} 14... Qxb2 15. Bxe7 Re8 16. Bxd7 Rxe7 17. Bf5 Bc6 18. Qd6 Qf6 19. Qxf6 gxf6 20. Nd2 Re5 {½-½ (42) Rizzardi,J (2391)-Dos Santos,M (2420) ICCF email 2006}) 15. Re1 {[%emt 0:00:21][%cal Ob5c4] Strongly threatening Bc4!} d5 {[%emt 0:01:49] Prevents Bc4.} 16. Bxe7 {[%emt 0:02:46]} (16. a4 {looks sharper.} Bf6 17. b4 cxb4 18. Nd4) 16... Qxe7 {[%emt 0:02:42] [#]} 17. Nd2 $1 {[%emt 0:00:16]} Qb7 $1 {[%emt 0:12:39]} 18. Qe2 {[%emt 0:05:15]} ({White should play} 18. a4 $14 Nc6 19. Qc1 (19. Nxe4 dxe4 20. Qb1 Nd4 $14)) 18... Nc6 $1 $11 {[%emt 0:09:03] ...Nd4 is the strong threat. The position is equal.} 19. Bxc6 {[%emt 0:01:33]} Qxc6 {[%emt 0:00:17]} 20. Nxe4 {[%emt 0:00:25]} dxe4 {[%emt 0:01:58]} 21. Qxe4 {[%emt 0:08:17]} Qxe4 {[%emt 0:00:20]} 22. Rxe4 {[%emt 0:00:12]} Rxa2 {[%emt 0:00:10][%mdl 4096] Endgame KRR-KRR} 23. Rae1 {[%emt 0:00:04] [#] Re8+ would kill now.} g6 {[%emt 0:01:20]} 24. Rc4 {[%emt 0:00:10]} Rd5 {[%emt 0:03:37]} 25. Rc2 {[%emt 0:02:35]} h5 {[%emt 0:01:27]} 26. g3 {[%emt 0:00:22]} g5 {[%emt 0:01:41]} 27. Rce2 {[%emt 0:03:27]} Ra5 {[%emt 0:06:52]} 28. Re4 {[%emt 0:02:28]} Rb5 {[%emt 0:01:04]} 29. R1e2 {[%emt 0:01:15]} Kg7 {[%emt 0:03:41]} 30. Kg2 {[%emt 0:00:48]} Kg6 {[%emt 0:01:01]} 31. Re5 {[%emt 0:05:12]} c4 {[%emt 0:07:16]} 32. R5e4 {[%emt 0:00:16]} Rb4 {[%emt 0:01:54]} 33. Rc2 {[%emt 0:00:28]} Rc5 {[%emt 0:00:36]} 34. b3 {[%emt 0:00:36]} cxb3 {[%emt 0:05:03]} 35. Rxc5 {[%emt 0:00:14]} Rxe4 {[%emt 0:00:05]} 36. Rb5 {[%emt 0:00:04] Against Rb4} h4 {[%emt 0:00:08]} 37. Rxb3 {[%emt 0:00:04]} f5 {[%emt 0:00:09]} 38. Rb6+ {[%emt 0:00:57]} Kh5 {[%emt 0:03:04]} 39. Rf6 {[%emt 0:00:25]} Re5 {[%emt 0:00:17] Weighted Error Value: White=0.03 (flawless) /Black=0.03 (flawless)} 1/2-1/2

[Event "SUI-ch Bundesturnier TP-1 2022"]
[Site "Payerne"]
[Date "2022.05.28"]
[Round "5.8"]
[White "Sutter, Oliver"]
[Black "Perreard, Nicolas"]
[Result "1-0"]
[ECO "D36"]
[WhiteElo "2316"]
[BlackElo "2071"]
[Annotator "TA"]
[PlyCount "73"]
[EventDate "2022.05.26"]
[EventType "swiss"]
[EventCountry "SUI"]
[SourceTitle "playchess.com"]
[Source "ChessBase"]
[SourceQuality "1"]
[TimeControl "5400+30"]

{[%evp 19,73,15,42,39,42,53,52,24,107,99,115,90,90,90,220,94,94,97,96,99,267,90,94,109,162,141,178,66,71,63,106,35,44,0,0,8,10,12,443,427,1107,1050,999,972,922,905,29973,29974,29975,29969,29994,6637,6316,6305,6107,1334]} 1. c4 {[%emt 0:00:02]} e6 {[%emt 0:00:18]} 2. d4 {[%emt 0:00:33]} Nf6 {[%emt 0:00:15]} 3. Nc3 {[%emt 0:00:06]} d5 {[%emt 0:00:05]} 4. Bg5 {[%emt 0:00:35]} Be7 {[%emt 0:00:46]} 5. e3 {[%emt 0:00:15]} h6 {[%emt 0:00:09]} 6. Bh4 {[%emt 0:00:39]} O-O {[%emt 0:00:26]} 7. Nf3 {[%emt 0:00:07]} a6 {[%emt 0:00:59]} 8. cxd5 {[%emt 0:00:35]} exd5 {[%emt 0:01:28]} 9. Bd3 {[%emt 0:00:12]} c6 {[%emt 0:02:29]} 10. Qc2 {[%emt 0:01:15]} Nbd7 {[%emt 0:00:39]} 11. O-O {[%emt 0:01:44] D36: Queen's Gambit Declined: Exchange Variation: Main line (5 Bg5 c6 6 Qc2).} g5 {[%emt 0:03:37]} 12. Bg3 {[%emt 0:02:28]} Nh5 {[%emt 0:00:13] [#]} 13. Rfe1 $146 {[%emt 0:18:59] White is slightly better.} ({Predecessor:} 13. Be5 f6 14. Bh7+ Kh8 15. Qg6 fxe5 16. Qxh6 Ndf6 17. Bg6+ Kg8 18. dxe5 Qd7 19. exf6 Nxf6 20. Nxg5 {1-0 (38) Damous,F (2112)-Sousa,A (1813) Sao Luis 2016}) 13... Ng7 {[%emt 0:02:09]} (13... Nxg3 $11 14. hxg3 Nf6) 14. e4 {[%emt 0:10:13]} dxe4 {[%emt 0:19:52]} 15. Nxe4 {[%emt 0:00:13]} Nb6 {[%emt 0:02:45]} 16. Nc5 {[%emt 0:13:20]} Ne6 {[%emt 0:06:00]} (16... Nd5 $16 {was worth a try.}) 17. Be5 {[%emt 0:07:04]} (17. Nxe6 $18 {is more deadly.} Bxe6 18. Bxa6 $1) 17... Bf6 $16 {[%emt 0:00:09]} 18. Rad1 {[%emt 0:03:37] 0x0.0012591b6f6bdp-1022s more active pieces. The black rooks are badly placed.} Nd5 {[%emt 0:11:30]} 19. Be4 {[%emt 0:09:34]} Bg7 $2 {[%emt 0:04:36]} (19... Re8 $16 {keeps fighting.}) 20. Qb3 $2 {[%emt 0:02:33]} (20. Bh7+ $18 Kh8 21. Nxe6 Bxe6 22. Bxg7+ Kxg7 23. Rxe6 $1 {[%mdl 512]}) 20... Bxe5 {[%emt 0:07:35]} 21. Nxe5 {[%emt 0:01:35]} Qc7 {[%emt 0:07:19]} (21... Ra7 $16) 22. Bxd5 {[%emt 0:03:29]} cxd5 {[%emt 0:00:09]} 23. Nxe6 {[%emt 0:02:21]} ({Better is} 23. Qxd5 $18 {And now Qf3 would win.} Rd8 24. Nxe6 Bxe6 25. Qf3) 23... Bxe6 $14 {[%emt 0:00:42]} 24. Rc1 {[%emt 0:00:07]} Qa5 {[%emt 0:00:34]} 25. Nd3 {[%emt 0:07:29]} (25. Re2 $16) 25... Rac8 {[%emt 0:02:11]} 26. Nc5 {[%emt 0:01:11]} (26. Qxb7 $5 {[%cal Rd3c5]} Rxc1 27. Rxc1 $11) 26... b6 {[%emt 0:01:00]} 27. Nxe6 {[%emt 0:02:18]} Rxc1 {[%emt 0:01:12]} (27... Rfe8 {is interesting.} 28. Qe3 Rxc1 29. Qxc1 Rxe6 30. Qc8+ Kg7) 28. Rxc1 {[%emt 0:00:05]} fxe6 $11 {[%emt 0:00:04][%mdl 12288] Endgame KQR-KQR} (28... Re8 $1 $11 {and Black is okay.}) 29. Qe3 $18 {[%emt 0:00:59]} (29. Qh3 Rf6 30. Qe3 Qb5 31. Rc8+ Kh7 32. Rc7+ Kg8 $18) 29... Rf6 {[%emt 0:01:17]} (29... e5 $142 30. Qxe5 Qd2 31. Qxd5+ Kh8 32. Qe5+ Kg8 33. Qe6+ Kh8 34. Qxh6+ Kg8 35. Qe6+ Kh8 36. Qe5+ Kg8) 30. Rc8+ {[%emt 0:03:20]} Kg7 {[%emt 0:00:31]} 31. Rc7+ {[%emt 0:00:14]} ({Worse is} 31. Qe5 Qxa2 32. g4 Qb1+ 33. Kg2 Qe4+ 34. Qxe4 dxe4 $11) 31... Kg8 {[%emt 0:00:30]} 32. h4 {[%emt 0:02:09]} Qa4 {[%emt 0:07:42]} 33. Qe5 {[%emt 0:02:33]} Qd1+ {[%emt 0:04:53]} 34. Kh2 {[%emt 0:00:12]} Rf7 {[%emt 0:00:56]} 35. Qxe6 {[%emt 0:01:23]} (35. Rc8+ $142 Kh7 36. Rh8+ Kg6 37. Rg8+ Rg7 38. Rxg7+ Kh5 {[#]} 39. Rxg5+ $1 {[%mdl 512]} hxg5 40. Qxg5#) 35... Qh5 {[%emt 0:00:06]} 36. Qe8+ {[%emt 0:00:54]} Kg7 {[%emt 0:00:12]} 37. Qxf7+ {[%emt 0:00:34] Weighted Error Value: White=0.34/Black=0.89} (37. Rxf7+ $142 Qxf7 38. Qxf7+ Kxf7 39. hxg5 hxg5 40. Kg3) 1-0

[Event "SUI-ch Bundesturnier TP-1 2022"]
[Site "Payerne"]
[Date "2022.05.28"]
[Round "5.9"]
[White "Bondar, Yevgen"]
[Black "Mamalis, Prokopios"]
[Result "0-1"]
[ECO "C01"]
[WhiteElo "2327"]
[BlackElo "2067"]
[Annotator "TA"]
[PlyCount "120"]
[EventDate "2022.05.26"]
[EventType "swiss"]
[EventCountry "SUI"]
[SourceTitle "playchess.com"]
[Source "ChessBase"]
[SourceQuality "1"]
[TimeControl "5400+30"]

{[%evp 9,120,34,27,23,31,37,39,30,89,88,87,59,71,55,259,252,255,259,231,247,331,320,356,351,353,310,306,307,312,308,359,272,254,258,302,286,292,299,304,300,296,282,289,181,288,234,262,227,727,707,736,747,675,674,3777,495,495,420,432,412,371,357,320,18,72,14,15,14,15,0,0,0,0,0,0,0,0,0,122,0,0,0,0,0,0,0,0,0,8,0,4,0,0,0,0,0,0,-10,-10,-267,-42,-29978,-29979,-29979,-29980,-29980,-29981,-29981,-29982,-29982,-29983,-29990,-29991]} 1. e4 {[%emt 0:00:01]} e6 {[%emt 0:05:29]} 2. Nf3 {[%emt 0:05:52]} d5 {[%emt 0:03:42]} 3. exd5 {[%emt 0:05:23]} exd5 {[%emt 0:00:20]} 4. d4 {[%emt 0:00:02]} Bg4 {[%emt 0:01:35]} 5. h3 {[%emt 0:04:18]} Bh5 {[%emt 0:01:04]} 6. g4 {[%emt 0:07:46] C01: French: Exchange Variation.} Bg6 $1 {[%emt 0:06:12]} 7. Qe2+ {[%emt 0:00:40]} Qe7 {[%emt 0:07:27]} 8. Ne5 {[%emt 0:04:12] White is slightly better.} Be4 {[%emt 0:12:32]} (8... Nd7 $11) 9. f3 $16 {[%emt 0:11:37][%cal Bf2f3,Bf3e4,Be4d5][%mdl 32]} f6 {[%emt 0:01:29]} 10. fxe4 {[%emt 0:01:41]} fxe5 {[%emt 0:00:15]} 11. exd5 {[%emt 0:06:52]} Qh4+ $2 {[%emt 0:05:52]} (11... exd4 $14 12. Na3 Nf6) 12. Kd1 $18 {[%emt 0:05:20]} Nd7 {[%emt 0:02:08]} 13. dxe5 {[%emt 0:05:05]} O-O-O {[%emt 0:02:47]} 14. c4 {[%emt 0:00:16] [#]} c6 $146 {[%emt 0:07:57]} ({Predecessor:} 14... Bc5 15. Nc3 Nh6 16. Ne4 Be7 17. Bf4 Ng8 18. Qe3 Nb6 19. Ng5 Nh6 20. Rh2 Rdf8 21. Nf3 Nxg4 22. hxg4 Qxg4 23. Bh3 Rxf4 24. Qxf4 Qxh3 25. Rxh3 {1-0 (25) Seppala,A (2068)-Eloranta,K (2026) Jyvaskyla 2016}) 15. Nc3 {[%emt 0:02:19]} cxd5 {[%emt 0:20:22]} 16. cxd5 {[%emt 0:01:08]} Qg3 {[%emt 0:00:13] Prevents Bf4.} 17. e6 {[%emt 0:12:36]} Nb6 {[%emt 0:01:09]} 18. Bg2 {[%emt 0:02:18]} Nf6 {[%emt 0:00:12]} 19. Bg5 {[%emt 0:04:10]} (19. e7 Bxe7 20. Kc2 (20. Qxe7 $2 Qxg2 21. Qc5+ Kb8 $19) 20... Nfxd5 $11) 19... Bb4 {[%emt 0:06:08]} 20. Bxf6 {[%emt 0:02:42]} gxf6 {[%emt 0:00:11]} 21. Kc2 {[%emt 0:00:19]} Bxc3 {[%emt 0:02:05]} 22. bxc3 {[%emt 0:00:30]} Kb8 {[%emt 0:00:05]} 23. Rhd1 {[%emt 0:02:08]} Rc8 {[%emt 0:00:19]} 24. Rd3 {[%emt 0:01:34]} Qd6 {[%emt 0:00:02]} 25. Qf3 {[%emt 0:01:14]} Nc4 {[%emt 0:01:44]} 26. a4 {[%emt 0:03:24]} (26. Qxf6 $2 Rhf8 27. Qh4 Qa3 28. Qg3+ Ka8 $19) 26... Qb6 {[%emt 0:02:07]} (26... Na3+ $142 27. Kd1 Nc4) 27. Ra2 {[%emt 0:01:23]} Ne5 {[%emt 0:00:38]} 28. Qg3 {[%emt 0:01:23][%cal Od5d6] Black must now prevent d6!} (28. Qxf6 $6 Nxd3 29. Kxd3 Qa6+ 30. Ke3 (30. Kd2 Qd6 $16) 30... Qd6 $16) 28... Ka8 $2 {[%emt 0:00:06] [#]} (28... Qd6 29. Kb1 Rc4) 29. d6 $1 {[%emt 0:03:29] Rb2 is the strong threat.} Nxd3 {[%emt 0:01:21]} 30. Qxd3 {[%emt 0:00:02]} Qf2+ {[%emt 0:04:54]} 31. Kb3 {[%emt 0:01:46]} Qe1 {[%emt 0:00:47] [#]} 32. Bd5 {[%emt 0:02:44]} (32. Bxb7+ $142 $1 {[%mdl 512]} Kxb7 33. Qb5+ (33. e7 Rc6 $11) 33... Ka8 34. Qd5+ Kb8 35. Rb2 Qxc3+ 36. Ka2+ Qxb2+ 37. Kxb2) 32... Rxc3+ {[%emt 0:02:06]} 33. Qxc3 {[%emt 0:00:14]} Qd1+ {[%emt 0:00:05]} 34. Rc2 $1 {[%emt 0:01:04] Qd2 would kill now.} Qxd5+ {[%emt 0:00:07][%mdl 4096] Endgame KQR-KQR} 35. Qc4 {[%emt 0:00:59]} (35. Kb2 Qxe6 36. Qc7 Qe5+ 37. Rc3 a6 $14) 35... Qxd6 {[%emt 0:00:02] [#]} 36. e7 $2 {[%emt 0:00:52]} (36. Qc8+ $1 $18 {[%mdl 512]} Qb8 37. Qxb8+ Kxb8 38. Rf2) 36... Qd7 {[%emt 0:01:28]} (36... Kb8 $11) 37. Qc7 {[%emt 0:00:38]} ({White should play} 37. a5 $16) 37... Qxc7 $1 $11 {[%emt 0:00:44]} 38. Rxc7 {[%emt 0:00:02] White wants to mate with Rd7. KR-KR} Kb8 {[%emt 0:00:01]} 39. e8=Q+ {[%emt 0:00:28]} (39. Rd7 {with more complications.} Kc8 40. Rd6 Re8 41. Rxf6 Kd7 42. Kc4) 39... Rxe8 {[%emt 0:00:07]} 40. Rxh7 {[%emt 0:00:03]} Re3+ {[%emt 0:02:23]} 41. Kb2 {[%emt 0:00:39]} Re2+ {[%emt 0:00:57]} 42. Kc3 {[%emt 0:00:45]} Re3+ {[%emt 0:00:07]} 43. Kd2 {[%emt 0:01:03]} Rf3 {[%emt 0:01:21]} (43... Ra3 $11) 44. h4 {[%emt 0:00:24]} (44. a5 $1 $16) 44... Rf4 {[%emt 0:00:40][%csl LRa4,LRg4]} 45. Rg7 {[%emt 0:00:22] And now h5 would win.} Rxa4 {[%emt 0:00:54]} 46. h5 {[%emt 0:00:23]} a5 $1 {[%emt 0:00:34]} 47. Rg6 {[%emt 0:00:57]} Ka7 {[%emt 0:00:21]} 48. h6 {[%emt 0:00:07]} b6 {[%emt 0:00:31]} 49. Kc3 {[%emt 0:00:52]} ({Of course not} 49. Rxf6 Rxg4 50. Ke3 (50. Rf7+ Ka6 $17) 50... Rh4 $17) 49... Rf4 {[%emt 0:00:13]} 50. h7 {[%emt 0:00:41]} Rf3+ {[%emt 0:00:07]} 51. Kd4 {[%emt 0:00:31]} Rh3 {[%emt 0:00:08]} 52. Rg7+ {[%emt 0:00:14]} Ka6 {[%emt 0:00:15]} 53. Kd5 {[%emt 0:00:30]} a4 {[%emt 0:01:10] Threatens to win with ...a3.} 54. Kc6 $2 {[%emt 0:00:48][%mdl 8192] [#]} (54. Re7 $11) 54... a3 $2 {[%emt 0:00:16]} (54... Rh6 $1 $19 {aiming for ...a3.} 55. Rd7 f5+ 56. Rd6 Rxh7 57. gxf5 b5) 55. Rb7 $2 {[%emt 0:00:30][%mdl 8192]} (55. Re7 $15 Rh6 56. Re3 f5+ 57. Kd5) 55... a2 {[%emt 0:01:24] Black mates.} 56. Rxb6+ {[%emt 0:00:01] [#]} Ka7 $1 {[%emt 0:00:15]} 57. Rb7+ {[%emt 0:00:48]} Ka8 {[%emt 0:00:20]} 58. Rb3 {[%emt 0:00:35]} Rxh7 {[%emt 0:00:21]} 59. Ra3+ {[%emt 0:00:27]} Ra7 {[%emt 0:00:16]} 60. Rd3 {[%emt 0:00:04]} Ra6+ {[%emt 0:00:27] Quite a comeback for Black.  Weighted Error Value: White=0.54/Black=0.27 (precise)} 0-1

[Event "SUI-ch Bundesturnier TP-1 2022"]
[Site "Payerne"]
[Date "2022.05.28"]
[Round "5.10"]
[White "Borner, Daniel"]
[Black "Rohrer, Christophe"]
[Result "1/2-1/2"]
[ECO "C74"]
[WhiteElo "2063"]
[BlackElo "2285"]
[Annotator "TA"]
[PlyCount "124"]
[EventDate "2022.05.26"]
[EventType "swiss"]
[EventCountry "SUI"]
[SourceTitle "playchess.com"]
[Source "ChessBase"]
[SourceQuality "1"]
[TimeControl "5400+30"]

{[%evp 9,124,43,49,48,59,39,39,47,43,20,25,9,54,64,75,60,54,22,36,36,41,13,22,33,15,0,14,23,47,55,50,42,47,53,49,18,25,14,53,29,37,37,33,24,16,8,7,7,7,8,37,0,0,0,0,0,0,-13,-14,-14,-14,-21,0,0,0,0,0,0,0,0,0,0,0,0,0,0,0,-29,-24,-8,0,0,0,-1,0,0,0,0,0,0,0,0,0,0,0,-8,0,0,0,0,0,0,0,0,0,0,0,0,0,0,0,0,0,0,0,0,0]} 1. e4 {[%emt 0:00:29]} e5 {[%emt 0:00:15]} 2. Nf3 {[%emt 0:00:32]} Nc6 {[%emt 0:00:13]} 3. Bb5 {[%emt 0:00:06]} a6 {[%emt 0:00:12]} 4. Ba4 {[%emt 0:00:07]} d6 {[%emt 0:00:17]} 5. c3 {[%emt 0:00:37]} Bg4 {[%emt 0:00:20]} 6. h3 {[%emt 0:00:36] C74: Ruy Lopez: Deferred Steinitz: 5 c3 f5.} Bh5 {[%emt 0:01:00]} 7. d3 {[%emt 0:00:35]} Nf6 {[%emt 0:00:59][%cal Bg8f6,Bf6d7,Bd7c5][%mdl 32]} 8. Nbd2 {[%emt 0:01:06][%cal Bb1d2,Bd2f1,Bf1e3,Be3d5][%mdl 32] White is slightly better.} Nd7 {[%emt 0:01:04]} 9. Nf1 {[%emt 0:02:31]} Nc5 {[%emt 0:01:23]} 10. Bc2 {[%emt 0:00:22] [#]} Bg6 $146 {[%emt 0:04:23]} (10... d5) ({Predecessor:} 10... d5 11. Ng3 Bg6 12. Qe2 d4 13. O-O Be7 14. cxd4 Nxd4 15. Nxd4 Qxd4 16. Be3 Qd7 {1-0 (44) Panov,V-Estrin,Y Moscow 1949}) 11. Ne3 {[%emt 0:02:50]} Be7 {[%emt 0:07:36]} 12. O-O {[%emt 0:04:49]} (12. d4 Nd7 13. O-O) 12... O-O {[%emt 0:01:26]} 13. Qe2 {[%emt 0:05:21]} Ne6 {[%emt 0:06:50]} 14. Nd5 {[%emt 0:04:06]} Kh8 {[%emt 0:04:48]} 15. Be3 {[%emt 0:03:44]} f5 {[%emt 0:08:02]} 16. exf5 {[%emt 0:04:16]} Bxf5 {[%emt 0:01:17]} 17. Rad1 {[%emt 0:02:29]} Qe8 {[%emt 0:09:25]} 18. d4 {[%emt 0:01:57]} Qh5 {[%emt 0:14:49] [#] White must now prevent ...e4.} 19. Bxf5 {[%emt 0:01:39]} Qxf5 {[%emt 0:00:33]} 20. dxe5 {[%emt 0:04:46]} dxe5 {[%emt 0:00:36]} 21. Nd2 {[%emt 0:06:24]} Rad8 {[%emt 0:03:29]} 22. Nxe7 {[%emt 0:03:19]} Nxe7 {[%emt 0:00:07]} 23. Qg4 {[%emt 0:02:17]} Rd3 {[%emt 0:03:44]} 24. Ne4 {[%emt 0:02:34]} Rfd8 {[%emt 0:01:08] [#] aiming for ...Qxg4.} 25. Rxd3 {[%emt 0:02:45]} Rxd3 {[%emt 0:00:22]} 26. Qxf5 {[%emt 0:03:55]} Nxf5 {[%emt 0:00:02]} 27. Bc1 {[%emt 0:00:14]} Nd6 {[%emt 0:03:03]} 28. Nxd6 {[%emt 0:01:18]} cxd6 $11 {[%emt 0:00:09][%mdl 4096] Endgame KRB-KRN} 29. Re1 {[%emt 0:01:05]} g5 {[%emt 0:00:52]} 30. g3 {[%emt 0:01:29]} (30. Kf1 $5 {[%cal Rf1e2]}) 30... Kg7 {[%emt 0:02:26]} 31. Kf1 {[%emt 0:00:34]} Kf6 {[%emt 0:00:44]} 32. Ke2 {[%emt 0:00:37]} Rd5 {[%emt 0:03:13]} 33. Rd1 {[%emt 0:04:48]} Rxd1 {[%emt 0:00:10]} 34. Kxd1 {[%emt 0:00:02] KB-KN} d5 {[%emt 0:01:45]} 35. Ke2 {[%emt 0:01:34]} e4 {[%emt 0:02:48]} 36. Be3 {[%emt 0:02:12]} Ke5 {[%emt 0:00:46]} 37. Ba7 {[%emt 0:01:45]} h5 {[%emt 0:03:29]} 38. Ke3 {[%emt 0:02:26]} Kf5 {[%emt 0:03:53]} 39. Bb6 {[%emt 0:05:04]} Ke5 {[%emt 0:00:08]} 40. Ba7 {[%emt 0:00:06]} Nd8 {[%emt 0:01:55]} 41. Bb6 {[%emt 0:03:23]} Nc6 {[%emt 0:00:41]} 42. a4 {[%emt 0:00:40]} Kd6 {[%emt 0:01:06]} 43. b4 {[%emt 0:00:37]} Ne5 {[%emt 0:01:12] And now ...Nc4+ would win.} 44. Bd8 {[%emt 0:08:51]} Nf7 {[%emt 0:00:27] The position is equal.} 45. Bb6 {[%emt 0:02:15]} Nh6 {[%emt 0:01:10]} 46. Ke2 {[%emt 0:01:08]} g4 {[%emt 0:01:31]} 47. hxg4 {[%emt 0:00:12]} Nxg4 {[%emt 0:01:26]} 48. Kf1 {[%emt 0:02:47]} Ke6 {[%emt 0:01:38]} 49. Kg2 {[%emt 0:00:10]} Ne5 {[%emt 0:01:16]} 50. Kh3 {[%emt 0:01:53]} Kf5 {[%emt 0:00:05]} 51. Kh4 {[%emt 0:00:58]} Kg6 {[%emt 0:00:01]} 52. Kh3 {[%emt 0:00:46]} Kg5 {[%emt 0:01:02]} 53. Bd8+ {[%emt 0:00:29]} Kf5 {[%emt 0:00:13][%cal Od5d4]} 54. Bb6 {[%emt 0:00:44]} Nf3 {[%emt 0:00:15]} 55. Bc5 {[%emt 0:01:22]} b5 {[%emt 0:01:58]} 56. axb5 {[%emt 0:00:21]} axb5 {[%emt 0:00:02]} 57. Be3 {[%emt 0:00:50]} Ne5 {[%emt 0:01:42]} 58. Kh4 {[%emt 0:00:41]} Kg6 {[%emt 0:00:05]} 59. Kh3 {[%emt 0:01:07]} Kf5 {[%emt 0:01:04]} 60. Kh4 {[%emt 0:00:29]} Kg6 {[%emt 0:00:12]} 61. Kh3 {[%emt 0:00:01]} Kf5 {[%emt 0:01:53]} 62. Kh4 {[%emt 0:00:13]} Kg6 {[%emt 0:00:05] Weighted Error Value: White=0.06 (flawless) /Black=0.05 (flawless)} 1/2-1/2

[Event "SUI-ch Bundesturnier TP-1 2022"]
[Site "Payerne"]
[Date "2022.05.28"]
[Round "6.1"]
[White "Collin, Moritz Valentin"]
[Black "Bauer, Christian"]
[Result "0-1"]
[ECO "B00"]
[WhiteElo "2052"]
[BlackElo "2596"]
[Annotator "TA"]
[PlyCount "42"]
[EventDate "2022.05.26"]
[EventType "swiss"]
[EventCountry "SUI"]
[SourceTitle "playchess.com"]
[Source "ChessBase"]
[SourceQuality "1"]
[TimeControl "5400+30"]

{[%evp 9,42,-18,-32,-17,-16,-66,-57,-66,-70,-148,-50,-52,-8,-98,-37,-151,-117,-337,-323,-321,-314,-314,-314,-322,-319,-309,-304,-495,-491,-570,-544,-806,-782,-1652,-1614]} 1. d4 {[%emt 0:00:02]} a6 {[%emt 0:00:44]} 2. c4 {[%emt 0:00:05]} b5 {[%emt 0:00:07]} 3. e4 {[%emt 0:00:05]} Bb7 {[%emt 0:00:44]} 4. d5 {[%emt 0:00:08]} e6 {[%emt 0:00:17]} 5. cxb5 {[%emt 0:01:41] [#]} Nf6 $146 {[%emt 0:02:15]} ({Predecessor:} 5... Qh4 6. dxe6 Qxe4+ 7. Qe2 fxe6 8. Qxe4 Bxe4 9. Nc3 Bb4 10. Bd2 Bb7 11. a3 Bc5 {½-½ (67) Weimer,E (2117)-Schmedders,H (2205) Germany 2009}) 6. Nc3 {[%emt 0:00:41] B00: Queen's Fianchetto Defence, Nimzowitsch Defence.} Bb4 {[%emt 0:01:32]} 7. Bg5 {[%emt 0:03:38]} (7. Bd3 $11) 7... h6 $15 {[%emt 0:05:15]} 8. Bxf6 {[%emt 0:03:57] Black is slightly better.} Qxf6 {[%emt 0:01:07]} 9. Nge2 {[%emt 0:01:46] [#]} ({Better is} 9. Qb3 $15 Bxc3+ 10. Qxc3) 9... exd5 {[%emt 0:07:09] Black is more active.} (9... Bc5 $1 $17 10. f4 exd5 11. exd5 Qb6) 10. exd5 {[%emt 0:01:03]} O-O {[%emt 0:05:36] ...Re8 is the strong threat.} 11. Qd4 {[%emt 0:02:20]} (11. a3 $1 $11 Ba5 12. Qd4) 11... Qe7 {[%emt 0:03:42]} ({Black should play} 11... Qxd4 $17 12. Nxd4 Bxd5) 12. Rd1 {[%emt 0:13:16]} (12. b6 $15 Bc5 13. Qg4 Bxb6 14. O-O-O) 12... Re8 {[%emt 0:07:09] Strongly threatening ...axb5.} 13. Rd2 $2 {[%emt 0:04:22] Loses the game.} (13. b6 $17 c5 14. Qe3) 13... axb5 $19 {[%emt 0:01:05][%cal Ba6b5,Bb5b4][%mdl 32] Threatens to win with ...Bc5.} 14. g3 {[%emt 0:02:20]} Bc5 {[%emt 0:08:35]} 15. Qf4 {[%emt 0:06:42]} b4 {[%emt 0:01:07]} 16. Nd1 {[%emt 0:02:31]} Rxa2 {[%emt 0:02:49] [#] And now ...b3 would win.} 17. Bg2 {[%emt 0:06:25]} Ba6 {[%emt 0:01:04][%cal Re7e2] ( -> ...Qxe2+). This bishop pair is nice.} 18. Bf3 {[%emt 0:04:00]} (18. O-O {only move.}) 18... d6 {[%emt 0:01:49] White must now prevent ...Nd7. Black is clearly winning.} 19. O-O {[%emt 0:02:07]} Nd7 {[%emt 0:00:42]} 20. Nc1 {[%emt 0:04:34]} Bxf1 {[%emt 0:04:25]} 21. Nxa2 {[%emt 0:05:39]} Qe1 {[%emt 0:01:13] Weighted Error Value: White=1.14/Black=0.15 (very precise)} 0-1